bitfinex-derivatives/quotes_BTCF0:USTF0_20241210
["timestamp","ask_amount","ask_price","bid_price","bid_amount"]
[1733803770048,0.00155484,96524.0,96518.0,0.04533388]
[1733803770252,0.00155484,96524.0,96517.0,0.1832293]
[1733803770643,0.00155484,96524.0,96518.0,0.1832293]
[1733803770849,0.051774,96520.0,96518.0,0.1832293]
[1733803771056,0.051777,96515.0,96514.0,0.04533388]
[1733803771245,0.00155484,96524.0,96512.0,0.04533388]
[1733803771551,0.051778,96513.0,96512.0,0.04530404]
[1733803772050,0.051778,96513.0,96511.0,0.1539]
[1733803772356,0.00155484,96524.0,96512.0,0.04530404]
[1733803772551,0.00155484,96524.0,96520.0,0.3608]
[1733803773358,0.00155484,96524.0,96521.0,0.04530404]
[1733803773648,0.00155484,96524.0,96522.0,0.04530404]
[1733803773959,0.00155484,96524.0,96521.0,0.04530404]
[1733803774453,0.00155484,96524.0,96520.0,0.3608]
[1733803774658,0.3608,96534.0,96521.0,0.04530404]
[1733803774842,0.36092665,96546.0,96521.0,0.04530404]
[1733803774843,0.37186272,96546.0,96529.0,0.3608]
[1733803775148,0.36092665,96546.0,96536.0,0.12356205]
[1733803775456,0.051765,96537.0,96536.0,0.12356205]
[1733803775645,0.051765,96537.0,96530.0,0.1429]
[1733803775849,0.051765,96537.0,96530.0,0.18820404]
[1733803776048,0.051765,96537.0,96531.0,0.04530404]
[1733803776457,0.36092665,96546.0,96531.0,0.04530404]
[1733803776645,0.051766,96536.0,96532.0,0.04530404]
[1733803776850,0.051766,96536.0,96531.0,0.04530404]
[1733803777047,0.051766,96536.0,96532.0,0.04530404]
[1733803777247,0.051766,96536.0,96533.0,0.04530404]
[1733803777452,0.051766,96536.0,96531.0,0.04530404]
[1733803777764,0.051766,96536.0,96534.0,0.1832293]
[1733803778052,0.051766,96536.0,96535.0,0.04530404]
[1733803778446,0.051766,96536.0,96535.0,0.28960978]
[1733803778645,0.051766,96536.0,96535.0,0.24430574]
[1733803779248,0.051766,96536.0,96535.0,0.28960978]
[1733803780159,0.051766,96536.0,96535.0,0.28898323]
[1733803780554,0.051766,96536.0,96535.0,0.28896164]
[1733803781052,0.051766,96536.0,96535.0,0.2436576]
[1733803781356,0.051766,96536.0,96535.0,0.28896164]
[1733803781551,0.051766,96536.0,96535.0,0.04530404]
[1733803781743,0.051766,96536.0,96535.0,0.24372212]
[1733803782152,0.051766,96536.0,96535.0,0.28902616]
[1733803783047,0.051766,96536.0,96535.0,0.28906589]
[1733803784145,0.051766,96536.0,96535.0,0.04530404]
[1733803784953,0.36092665,96546.0,96535.0,0.04538654]
[1733803785151,0.00012665,96546.0,96542.0,0.18285269]
[1733803785350,0.00012665,96546.0,96545.0,0.18285269]
[1733803785657,0.00012665,96546.0,96544.0,0.24380359]
[1733803785863,0.00012665,96546.0,96538.0,0.3608]
[1733803786556,0.00012665,96546.0,96540.0,0.3608]
[1733803786755,0.00012665,96546.0,96541.0,0.54327061]
[1733803787256,0.00012665,96546.0,96543.0,0.30450125]
[1733803787463,0.00012665,96546.0,96542.0,0.30450125]
[1733803787657,0.00012665,96546.0,96543.0,0.30450125]
[1733803788158,0.00012665,96546.0,96544.0,0.04530404]
[1733803788861,0.00012665,96546.0,96545.0,0.04530404]
[1733803790055,0.00012665,96546.0,96545.0,0.28838825]
[1733803790354,0.00012665,96546.0,96545.0,0.04530404]
[1733803790654,0.00012665,96546.0,96541.0,0.01073652]
[1733803790655,0.051762,96542.0,96541.0,0.04530404]
[1733803791059,0.051762,96542.0,96540.0,0.3608]
[1733803791254,0.051762,96542.0,96541.0,0.04529529]
[1733803791450,0.051762,96542.0,96540.0,0.3608]
[1733803791653,0.14692665,96546.0,96535.0,0.01105556]
[1733803791654,0.3608,96544.0,96535.0,0.01105556]
[1733803791857,0.051765,96536.0,96535.0,0.01105556]
[1733803792059,0.051765,96536.0,96535.0,0.05635237]
[1733803792260,0.051765,96536.0,96535.0,0.01105556]
[1733803792565,0.051765,96536.0,96535.0,0.19339372]
[1733803793156,0.051765,96536.0,96535.0,0.01105556]
[1733803793461,0.051765,96536.0,96535.0,0.23902057]
[1733803793761,0.412565,96536.0,96535.0,0.04537931]
[1733803794062,0.412565,96536.0,96535.0,8.25e-05]
[1733803794754,0.051765,96536.0,96535.0,8.25e-05]
[1733803796563,0.051765,96536.0,96535.0,0.28846352]
[1733803796860,0.051765,96536.0,96535.0,0.04537931]
[1733803800058,0.051765,96536.0,96535.0,0.2282755]
[1733803800454,0.051765,96536.0,96535.0,0.04537931]
[1733803800660,0.051765,96536.0,96535.0,8.25e-05]
[1733803800963,0.199165,96536.0,96535.0,8.25e-05]
[1733803804765,0.051771,96526.0,96523.0,0.18300233]
[1733803804966,0.051773,96521.0,96520.0,0.18300233]
[1733803805166,0.3608,96522.0,96511.0,0.24376339]
[1733803805374,0.3608,96512.0,96507.0,0.24376339]
[1733803805565,0.05178,96508.0,96506.0,0.24376339]
[1733803805863,0.05178,96508.0,96500.0,0.4280633]
[1733803805864,0.051784,96501.0,96500.0,0.12356205]
[1733803806071,0.051784,96501.0,96500.0,0.04531329]
[1733803806266,0.051784,96501.0,96500.0,0.04538693]
[1733803807262,0.051784,96501.0,96500.0,7.364e-05]
[1733803809266,0.3608,96512.0,96500.0,7.364e-05]
[1733803809572,0.051783,96503.0,96502.0,0.12356205]
[1733803809773,0.051783,96503.0,96502.0,0.04531329]
[1733803810876,0.051779,96511.0,96502.0,0.04531329]
[1733803811371,0.051775,96519.0,96506.0,0.3608]
[1733803811564,0.051775,96518.0,96516.0,0.3608]
[1733803811872,0.051775,96518.0,96517.0,0.19061329]
[1733803812176,0.3608,96532.0,96508.0,0.16887534]
[1733803812177,0.051778,96512.0,96508.0,0.16887534]
[1733803812362,0.051778,96512.0,96508.0,0.1453]
[1733803812559,0.05178,96509.0,96508.0,0.1453]
[1733803813765,0.051784,96501.0,96500.0,0.01119109]
[1733803816079,0.051784,96501.0,96500.0,7.364e-05]
[1733803819265,0.412584,96501.0,96500.0,6.4e-07]
[1733803819771,0.051798,96475.0,96474.0,0.04532407]
[1733803819975,0.051799,96473.0,96472.0,0.04532407]
[1733803820272,0.051799,96473.0,96464.0,0.04532407]
[1733803820572,0.051805,96461.0,96460.0,0.2875]
[1733803820780,0.051805,96461.0,96460.0,0.33293321]
[1733803820976,0.051805,96461.0,96460.0,0.19313321]
[1733803821179,0.051805,96461.0,96460.0,0.00010202]
[1733803825583,0.051805,96461.0,96460.0,2e-08]
[1733803825875,0.36736501,96461.0,96460.0,2e-08]
[1733803827080,0.1424,96463.0,96430.0,0.18542018]
[1733803827285,0.3608,96453.0,96440.0,0.18542018]
[1733803827580,0.051816,96442.0,96441.0,0.1423]
[1733803827980,0.051816,96442.0,96441.0,0.14241381]
[1733803828477,0.051811,96451.0,96441.0,0.14241381]
[1733803828780,0.37155107,96464.0,96443.0,0.3608]
[1733803829077,0.37155107,96464.0,96441.0,0.32783399]
[1733803829078,0.37155107,96464.0,96444.0,0.1422]
[1733803829878,0.051814,96445.0,96444.0,0.1422]
[1733803830487,0.051814,96445.0,96444.0,0.1442]
[1733803830976,0.3608,96464.0,96444.0,0.1422]
[1733803831282,0.3608,96464.0,96450.0,0.18542018]
[1733803831579,0.3608,96464.0,96451.0,0.3608]
[1733803831771,0.051809,96455.0,96451.0,0.3608]
[1733803831972,0.05181,96454.0,96451.0,0.3608]
[1733803834084,0.05181,96454.0,96451.0,0.3638]
[1733803834686,0.05181,96453.0,96451.0,0.3638]
[1733803834889,0.05181,96453.0,96451.0,0.003]
[1733803835382,0.1431,96452.0,96451.0,0.0016452]
[1733803835687,0.05181,96453.0,96451.0,0.0016452]
[1733803835984,0.05181,96453.0,96441.0,0.00011381]
[1733803835985,0.06269212,96453.0,96441.0,0.00011381]
[1733803836173,0.05181,96452.0,96451.0,0.001]
[1733803836374,0.05181,96452.0,96451.0,0.004]
[1733803836875,0.05181,96452.0,96441.0,0.00011381]
[1733803837185,0.051816,96442.0,96441.0,0.00011381]
[1733803838973,0.052816,96442.0,96441.0,0.00011381]
[1733803839778,0.055816,96442.0,96441.0,0.00011381]
[1733803841288,0.3608,96468.0,96441.0,0.00011381]
[1733803841582,0.3608,96468.0,96441.0,0.01090645]
[1733803841583,0.001,96442.0,96441.0,0.01090645]
[1733803841785,0.051813,96448.0,96441.0,0.00011381]
[1733803841978,0.051813,96448.0,96447.0,0.3608]
[1733803842181,0.051816,96442.0,96441.0,0.00011381]
[1733803842382,0.052816,96442.0,96441.0,0.00011381]
[1733803843078,0.051816,96442.0,96441.0,0.00011381]
[1733803843586,0.052816,96442.0,96441.0,0.00011381]
[1733803844283,0.002,96448.0,96441.0,0.00011381]
[1733803844484,0.002,96448.0,96447.0,0.3608]
[1733803844695,0.051811,96451.0,96447.0,0.3608]
[1733803844985,0.051811,96451.0,96448.0,0.1462]
[1733803845185,0.051811,96451.0,96448.0,0.2971]
[1733803845381,0.051807,96459.0,96448.0,0.2971]
[1733803845586,0.051807,96459.0,96449.0,0.12381555]
[1733803845783,0.3608,96468.0,96457.0,0.3608]
[1733803845784,0.051803,96465.0,96457.0,0.3608]
[1733803845982,0.00155575,96466.0,96458.0,9.332e-05]
[1733803846185,0.00155575,96466.0,96465.0,0.3608]
[1733803846383,0.12370793,96490.0,96465.0,0.3608]
[1733803846384,0.051795,96480.0,96465.0,0.3608]
[1733803846584,0.09274016,96488.0,96470.0,0.12381555]
[1733803846789,0.48450793,96493.0,96477.0,0.12381555]
[1733803846790,0.051796,96478.0,96477.0,0.12381555]
[1733803846987,0.3608,96493.0,96468.0,0.12381555]
[1733803846988,0.051798,96476.0,96468.0,0.12381555]
[1733803847186,0.051798,96476.0,96466.0,0.12381555]
[1733803847588,0.051798,96475.0,96466.0,0.12381555]
[1733803847980,0.37162644,96487.0,96466.0,0.12381555]
[1733803848186,0.37162644,96487.0,96465.0,0.37266531]
[1733803848386,0.051803,96467.0,96465.0,0.01186531]
[1733803848783,0.051803,96467.0,96466.0,0.001]
[1733803849581,0.051803,96467.0,96465.0,0.01286531]
[1733803849582,0.060803,96467.0,96465.0,0.01286531]
[1733803849788,0.066803,96467.0,96465.0,0.002]
[1733803850086,0.057803,96467.0,96465.0,0.001]
[1733803850286,0.066803,96467.0,96466.0,0.001]
[1733803850689,0.057803,96467.0,96465.0,0.001]
[1733803850983,0.066803,96467.0,96465.0,0.002]
[1733803851387,0.066803,96467.0,96466.0,0.001]
[1733803852096,0.060803,96467.0,96465.0,0.001]
[1733803852281,0.051807,96459.0,96458.0,9.332e-05]
[1733803852487,0.412607,96459.0,96458.0,9.332e-05]
[1733803853088,0.412607,96459.0,96458.0,3.2e-07]
[1733803853486,0.421607,96459.0,96458.0,0.00100032]
[1733803854489,0.51452441,96459.0,96458.0,0.00100032]
[1733803854688,0.425607,96459.0,96458.0,0.00100032]
[1733803855090,0.54931493,96459.0,96458.0,0.00100032]
[1733803855406,0.051819,96436.0,96435.0,0.1388]
[1733803855704,0.3608,96446.0,96425.0,0.24376339]
[1733803855898,0.051822,96431.0,96427.0,0.2903]
[1733803856190,0.3608,96446.0,96427.0,0.30108591]
[1733803856393,0.051823,96430.0,96428.0,0.04544079]
[1733803856596,0.051823,96430.0,96429.0,0.04533119]
[1733803856987,0.051823,96430.0,96428.0,0.0001096]
[1733803858902,0.051823,96430.0,96429.0,0.04833119]
[1733803859286,0.051823,96430.0,96429.0,0.003]
[1733803859594,0.051823,96430.0,96428.0,0.0021096]
[1733803859595,0.051823,96430.0,96428.0,0.0051096]
[1733803859994,0.051823,96430.0,96428.0,0.0031096]
[1733803860296,0.051823,96430.0,96429.0,0.001]
[1733803860798,0.051823,96430.0,96428.0,6e-07]
[1733803860994,0.1462,96429.0,96428.0,6e-07]
[1733803862697,0.051838,96402.0,96400.0,0.11093516]
[1733803863090,0.051838,96402.0,96400.0,0.1]
[1733803863296,0.051838,96402.0,96401.0,0.00013304]
[1733803863700,0.051838,96402.0,96401.0,0.04549063]
[1733803863896,0.051832,96411.0,96401.0,0.04549063]
[1733803864199,0.051832,96411.0,96407.0,0.3608]
[1733803864391,0.3608,96414.0,96408.0,0.1466]
[1733803864790,0.3608,96414.0,96409.0,0.04535759]
[1733803864995,0.3608,96414.0,96410.0,0.04535759]
[1733803865498,0.3608,96414.0,96409.0,0.1418]
[1733803865499,0.051833,96411.0,96409.0,0.1418]
[1733803866298,0.051833,96411.0,96410.0,0.002]
[1733803866803,0.051833,96411.0,96410.0,0.001]
[1733803867600,0.3608,96432.0,96410.0,0.3618]
[1733803867896,0.051823,96429.0,96423.0,0.3608]
[1733803868399,0.051824,96428.0,96423.0,0.3608]
[1733803868702,0.051819,96436.0,96423.0,0.3608]
[1733803869002,0.00155641,96437.0,96426.0,0.12381555]
[1733803869305,0.051817,96439.0,96434.0,0.3608]
[1733803869502,0.01070768,96451.0,96435.0,0.2953]
[1733803869697,7.26e-05,96451.0,96435.0,0.2953]
[1733803869902,7.26e-05,96451.0,96435.0,0.34065759]
[1733803870104,0.002,96436.0,96435.0,0.2953]
[1733803871699,0.051818,96438.0,96435.0,0.2963]
[1733803871901,0.051819,96436.0,96435.0,0.2963]
[1733803872104,0.051819,96436.0,96435.0,0.2973]
[1733803872604,7.26e-05,96451.0,96435.0,0.2973]
[1733803872605,0.051815,96444.0,96435.0,0.2973]
[1733803872810,7.26e-05,96451.0,96435.0,0.2973]
[1733803872811,0.051815,96443.0,96435.0,0.2973]
[1733803872998,0.051815,96443.0,96435.0,0.2963]
[1733803873512,0.051815,96443.0,96442.0,0.3608]
[1733803873709,7.26e-05,96451.0,96442.0,0.3608]
[1733803873914,0.1478,96475.0,96450.0,0.3608]
[1733803874209,0.051803,96466.0,96463.0,0.12381555]
[1733803874409,0.051803,96466.0,96464.0,0.2914]
[1733803874710,0.00518285,96472.0,96464.0,0.2914]
[1733803874916,0.051801,96470.0,96465.0,0.0001347]
[1733803875298,0.051802,96468.0,96465.0,0.0001347]
[1733803875703,0.006,96466.0,96465.0,0.0001347]
[1733803876306,0.006,96466.0,96465.0,0.0011347]
[1733803877808,0.006,96466.0,96465.0,0.0001347]
[1733803878108,0.015,96466.0,96465.0,0.0011347]
[1733803878316,0.015,96466.0,96465.0,0.0021347]
[1733803878317,0.009,96466.0,96465.0,0.0021347]
[1733803879116,0.006,96466.0,96465.0,0.0021347]
[1733803879414,0.051798,96475.0,96465.0,0.3629347]
[1733803879609,0.051798,96475.0,96474.0,0.3608]
[1733803880013,0.051798,96475.0,96474.0,0.40615759]
[1733803880203,0.01055922,96485.0,96466.0,0.04535759]
[1733803880204,0.051802,96468.0,96466.0,0.04535759]
[1733803880408,0.12381555,96480.0,96467.0,0.04535759]
[1733803880613,0.3608,96481.0,96467.0,0.04535759]
[1733803880614,0.051802,96468.0,96467.0,0.04535759]
[1733803880815,0.051802,96468.0,96467.0,0.04532721]
[1733803881500,0.051802,96468.0,96467.0,0.04632721]
[1733803882010,0.051803,96466.0,96465.0,0.0001347]
[1733803882213,0.051803,96466.0,96464.0,9.1e-07]
[1733803882514,0.051812,96448.0,96447.0,0.01066669]
[1733803882810,0.1507,96465.0,96440.0,0.12381555]
[1733803882811,0.051816,96442.0,96440.0,0.12381555]
[1733803883012,0.051816,96442.0,96440.0,0.1348428]
[1733803883322,0.051816,96442.0,96441.0,0.00010818]
[1733803884718,0.051816,96442.0,96441.0,0.00110818]
[1733803885310,0.051816,96442.0,96441.0,0.00210818]
[1733803885706,0.051816,96442.0,96441.0,0.00310818]
[1733803886018,0.3608,96455.0,96441.0,0.00310818]
[1733803886205,0.05181,96454.0,96445.0,0.12381555]
[1733803886411,0.051806,96460.0,96453.0,0.3608]
[1733803886714,0.3608,96464.0,96453.0,0.3608]
[1733803886913,0.051807,96458.0,96453.0,0.3608]
[1733803887317,0.051808,96457.0,96453.0,0.3608]
[1733803887707,0.004,96460.0,96453.0,0.3608]
[1733803887909,0.051809,96455.0,96453.0,0.3608]
[1733803889312,0.052809,96455.0,96453.0,0.3608]
[1733803890017,0.052809,96455.0,96446.0,0.1513]
[1733803890018,0.051813,96448.0,96446.0,0.1513]
[1733803890515,0.051815,96443.0,96442.0,0.1436]
[1733803891222,0.005,96455.0,96442.0,0.1436]
[1733803891411,0.051815,96443.0,96442.0,0.1436]
[1733803891617,0.051815,96443.0,96442.0,0.001]
[1733803892218,0.051815,96443.0,96442.0,0.0463392]
[1733803893124,0.051815,96443.0,96442.0,0.04634158]
[1733803893612,0.051815,96443.0,96441.0,0.00010818]
[1733803894619,0.051815,96443.0,96442.0,0.04534158]
[1733803895426,0.051815,96443.0,96441.0,0.24487157]
[1733803895811,0.051815,96443.0,96441.0,0.00110818]
[1733803896122,0.051815,96443.0,96442.0,0.04534158]
[1733803896517,0.412615,96443.0,96442.0,0.04534158]
[1733803896718,0.412615,96443.0,96441.0,1.8e-07]
[1733803896917,0.051824,96426.0,96425.0,0.24376339]
[1733803897120,0.051824,96426.0,96425.0,0.04535072]
[1733803897421,0.051828,96420.0,96419.0,0.04535242]
[1733803897723,0.051828,96420.0,96419.0,0.04544593]
[1733803897921,0.051828,96420.0,96419.0,9.351e-05]
[1733803898126,0.045828,96420.0,96419.0,9.351e-05]
[1733803898310,0.001,96426.0,96419.0,0.04544593]
[1733803898624,0.001,96426.0,96420.0,0.5129]
[1733803898813,0.001,96426.0,96421.0,0.04535242]
[1733803899016,0.001,96426.0,96422.0,0.04535242]
[1733803899324,0.051821,96433.0,96425.0,0.3608]
[1733803899521,0.051821,96433.0,96432.0,0.24457388]
[1733803899824,0.051821,96433.0,96432.0,0.04535242]
[1733803900418,0.051814,96446.0,96426.0,0.1524]
[1733803900613,0.3608,96450.0,96432.0,0.001]
[1733803900819,0.051813,96447.0,96432.0,0.003]
[1733803901014,0.05182,96434.0,96432.0,0.003]
[1733803901219,0.05182,96434.0,96433.0,0.3608]
[1733803901620,0.051809,96455.0,96434.0,7.826e-05]
[1733803901825,0.3608,96469.0,96434.0,7.826e-05]
[1733803901826,0.3608,96469.0,96453.0,0.3608]
[1733803902030,0.051807,96458.0,96453.0,0.3608]
[1733803902253,0.3608,96469.0,96453.0,0.3608]
[1733803902554,0.051805,96463.0,96454.0,0.14410299]
[1733803903349,0.003,96458.0,96454.0,0.14410299]
[1733803903549,0.051809,96455.0,96454.0,0.00010299]
[1733803903755,0.051809,96455.0,96454.0,0.24403728]
[1733803904055,0.0105742,96455.0,96433.0,0.36652232]
[1733803904257,0.05182,96434.0,96433.0,0.36652232]
[1733803905153,0.41262,96434.0,96433.0,0.36661343]
[1733803906503,0.41262,96434.0,96433.0,9.111e-05]
[1733803906657,0.051834,96408.0,96405.0,0.3608]
[1733803907763,0.051834,96408.0,96407.0,0.00165334]
[1733803908161,0.051834,96408.0,96407.0,9.762e-05]
[1733803908960,0.06272442,96408.0,96407.0,9.762e-05]
[1733803909165,0.06272442,96408.0,96407.0,6.2e-07]
[1733803909360,0.06272442,96408.0,96380.0,0.5059]
[1733803909361,0.051848,96381.0,96380.0,0.3608]
[1733803909556,0.051846,96386.0,96380.0,0.3608]
[1733803909770,0.3608,96401.0,96380.0,0.3608]
[1733803909968,0.051847,96385.0,96380.0,0.54646379]
[1733803910171,0.051847,96385.0,96381.0,0.53560227]
[1733803910463,0.3608,96401.0,96382.0,0.00011604]
[1733803910867,0.051843,96392.0,96382.0,0.00011604]
[1733803911268,0.051845,96388.0,96387.0,0.30570901]
[1733803911566,0.051845,96388.0,96382.0,0.00011604]
[1733803911765,0.051845,96388.0,96382.0,0.00911604]
[1733803912068,0.051847,96384.0,96382.0,0.00911604]
[1733803912266,0.051847,96384.0,96382.0,0.00011604]
[1733803912463,0.044847,96384.0,96382.0,0.00011604]
[1733803912767,0.044847,96384.0,96365.0,0.1457]
[1733803912768,0.3608,96385.0,96365.0,0.01059466]
[1733803913062,0.051857,96366.0,96365.0,0.01059466]
[1733803913671,0.051863,96354.0,96350.0,0.3608]
[1733803913867,0.048863,96354.0,96353.0,0.00164576]
[1733803914072,0.041863,96354.0,96353.0,0.00164576]
[1733803915276,0.041863,96354.0,96353.0,0.00564576]
[1733803916385,0.041863,96354.0,96353.0,0.00764576]
[1733803918483,0.05262919,96354.0,96353.0,0.00764576]
[1733803919779,0.05562919,96354.0,96353.0,0.00564576]
[1733803920190,0.044863,96354.0,96353.0,0.00564576]
[1733803920772,0.041863,96354.0,96353.0,0.00564576]
[1733803920977,0.049863,96354.0,96353.0,0.00164576]
[1733803921676,0.003,96354.0,96353.0,8.917e-05]
[1733803922379,0.008,96354.0,96353.0,8.917e-05]
[1733803922770,0.006,96354.0,96353.0,8.917e-05]
[1733803923882,0.002,96354.0,96353.0,8.917e-05]
[1733803924280,0.004,96354.0,96353.0,8.917e-05]
[1733803924972,0.002,96354.0,96353.0,8.917e-05]
[1733803925863,0.051863,96355.0,96353.0,0.00208917]
[1733803926160,0.051858,96364.0,96354.0,0.3608]
[1733803926360,0.051858,96363.0,96354.0,0.4996]
[1733803926750,0.37173859,96372.0,96354.0,0.4996]
[1733803927457,0.37173859,96372.0,96354.0,0.3608]
[1733803927762,0.051861,96359.0,96354.0,0.3628]
[1733803928263,0.051861,96359.0,96355.0,0.18308787]
[1733803929061,0.051861,96359.0,96356.0,0.32228787]
[1733803929357,0.051861,96359.0,96356.0,0.1392]
[1733803929951,0.37173859,96372.0,96356.0,0.1392]
[1733803929952,0.051856,96367.0,96356.0,0.1392]
[1733803930152,0.051857,96366.0,96361.0,0.18350966]
[1733803930352,0.051857,96365.0,96361.0,0.18350966]
[1733803930557,0.051858,96364.0,96361.0,0.18350966]
[1733803930755,0.051858,96364.0,96356.0,0.32270966]
[1733803931353,0.051858,96364.0,96357.0,0.18350966]
[1733803931558,0.002,96366.0,96356.0,0.1392]
[1733803931752,0.002,96366.0,96356.0,0.32270966]
[1733803932048,0.37173859,96372.0,96356.0,0.1392]
[1733803932049,0.051859,96362.0,96356.0,0.1392]
[1733803933460,0.051859,96362.0,96356.0,0.1402]
[1733803933760,0.051855,96370.0,96356.0,0.1402]
[1733803933953,0.37173859,96372.0,96356.0,0.1402]
[1733803934157,0.051857,96366.0,96359.0,0.18350966]
[1733803934354,0.37173859,96372.0,96359.0,0.18350966]
[1733803934856,0.05186,96359.0,96358.0,0.18350966]
[1733803935065,0.37173859,96372.0,96356.0,0.1402]
[1733803935364,0.37173859,96372.0,96356.0,0.001]
[1733803935365,0.051861,96358.0,96356.0,0.001]
[1733803935657,0.051863,96354.0,96353.0,8.917e-05]
[1733803938457,0.055863,96354.0,96353.0,8.917e-05]
[1733803938860,0.057863,96354.0,96353.0,8.917e-05]
[1733803940559,0.053863,96354.0,96353.0,8.917e-05]
[1733803940861,0.058863,96354.0,96353.0,8.917e-05]
[1733803941259,0.057863,96354.0,96353.0,8.917e-05]
[1733803941763,0.053863,96354.0,96353.0,8.917e-05]
[1733803941965,0.06974959,96354.0,96353.0,8.917e-05]
[1733803943267,0.06774959,96354.0,96353.0,8.917e-05]
[1733803943466,0.06974959,96354.0,96353.0,8.917e-05]
[1733803943665,0.19387992,96354.0,96353.0,8.917e-05]
[1733803943864,0.06974959,96354.0,96353.0,8.917e-05]
[1733803944360,0.06474959,96354.0,96353.0,8.917e-05]
[1733803944565,0.06974959,96354.0,96353.0,8.917e-05]
[1733803945866,0.06974959,96354.0,96335.0,0.01084633]
[1733803946067,0.06974959,96354.0,96333.0,0.2848]
[1733803946068,0.093106,96347.0,96333.0,0.2848]
[1733803946267,0.051873,96336.0,96333.0,0.46864252]
[1733803946466,0.051873,96335.0,96333.0,0.46864252]
[1733803946768,0.05187,96341.0,96333.0,0.2957064]
[1733803946971,0.05187,96341.0,96340.0,0.3608]
[1733803947173,0.093106,96349.0,96340.0,0.3608]
[1733803947467,0.09310369,96358.0,96348.0,0.3608]
[1733803947683,0.051866,96350.0,96348.0,0.3608]
[1733803948063,0.051866,96350.0,96348.0,0.54467849]
[1733803948377,0.051866,96350.0,96348.0,0.54455876]
[1733803948677,0.051866,96350.0,96348.0,0.3608]
[1733803948884,0.051866,96350.0,96348.0,0.37143712]
[1733803949373,0.3608,96365.0,96348.0,0.37143712]
[1733803949576,0.051864,96353.0,96348.0,0.37143712]
[1733803949769,0.051862,96356.0,96351.0,0.18378429]
[1733803949968,0.051862,96356.0,96348.0,0.37143712]
[1733803950374,0.051862,96356.0,96348.0,0.67784132]
[1733803950976,0.051862,96356.0,96348.0,0.37343712]
[1733803951173,0.001,96356.0,96348.0,0.37343712]
[1733803951477,0.001,96356.0,96353.0,0.18365934]
[1733803951673,0.001,96356.0,96348.0,0.01263712]
[1733803951674,0.051864,96352.0,96350.0,0.18365934]
[1733803951881,0.051856,96367.0,96349.0,0.18365934]
[1733803951882,0.051865,96350.0,96349.0,0.18365934]
[1733803952179,0.051865,96350.0,96349.0,0.1837001]
[1733803952369,0.051865,96350.0,96348.0,0.01263712]
[1733803952569,0.051865,96350.0,96349.0,0.1473]
[1733803953477,0.01060494,96362.0,96349.0,0.50921252]
[1733803953682,0.001,96356.0,96352.0,0.12404655]
[1733803953876,0.001,96356.0,96354.0,0.3064042]
[1733803954079,0.051858,96364.0,96355.0,0.1353]
[1733803954274,0.051858,96364.0,96359.0,0.3608]
[1733803955883,0.01065532,96366.0,96359.0,0.3608]
[1733803956084,0.051858,96363.0,96359.0,0.3608]
[1733803956285,0.00155729,96374.0,96359.0,0.3608]
[1733803956286,0.00155729,96374.0,96359.0,0.6608]
[1733803956476,0.12414134,96398.0,96373.0,0.6672042]
[1733803956778,0.1862111,96400.0,96384.0,0.66649376]
[1733803956779,0.051846,96385.0,96384.0,0.66649376]
[1733803956985,0.051848,96382.0,96375.0,0.30560431]
[1733803957285,0.48484655,96385.0,96376.0,0.18345151]
[1733803957478,0.051851,96376.0,96374.0,0.18352953]
[1733803958483,0.051851,96376.0,96374.0,7.802e-05]
[1733803959085,0.051851,96376.0,96374.0,0.18352953]
[1733803959486,0.06252475,96376.0,96374.0,7.802e-05]
[1733803959684,0.06452475,96376.0,96374.0,0.18352953]
[1733803959886,0.06452475,96376.0,96374.0,7.802e-05]
[1733803960187,0.06452475,96376.0,96374.0,0.18352953]
[1733803960487,0.06552475,96376.0,96374.0,0.18352953]
[1733803960684,0.054851,96376.0,96374.0,7.802e-05]
[1733803961080,0.003,96376.0,96374.0,7.802e-05]
[1733803961384,0.01066433,96395.0,96374.0,0.01065181]
[1733803961586,0.051843,96392.0,96389.0,0.18320113]
[1733803961886,0.051843,96392.0,96390.0,0.1402]
[1733803962885,0.060843,96392.0,96390.0,0.1402]
[1733803963477,0.009,96392.0,96391.0,0.045363]
[1733803963683,0.00251914,96392.0,96391.0,0.045363]
[1733803963879,0.05436214,96392.0,96391.0,0.22834836]
[1733803964095,0.05436214,96392.0,96391.0,0.27371305]
[1733803964387,0.05436214,96392.0,96391.0,0.09072769]
[1733803964687,0.05436214,96392.0,96391.0,0.18726469]
[1733803964993,0.05836214,96392.0,96391.0,0.18726469]
[1733803965181,0.00651914,96392.0,96391.0,0.73105005]
[1733803965389,0.00651914,96392.0,96391.0,0.54806469]
[1733803965889,0.004,96392.0,96391.0,0.54806469]
[1733803966090,0.013,96392.0,96391.0,0.54906469]
[1733803966290,0.064843,96392.0,96391.0,0.18826469]
[1733803966589,0.064843,96392.0,96382.0,0.18656844]
[1733803966590,0.051852,96375.0,96371.0,0.24381757]
[1733803966784,0.412652,96375.0,96374.0,0.04544982]
[1733803967182,0.412652,96375.0,96374.0,7.802e-05]
[1733803968787,0.412652,96375.0,96374.0,0.04545297]
[1733803969183,0.413652,96375.0,96374.0,0.04545297]
[1733803969388,0.413652,96375.0,96374.0,7.802e-05]
[1733803969788,0.413652,96375.0,96374.0,0.04545347]
[1733803970294,0.052852,96375.0,96374.0,0.04545347]
[1733803971488,0.052852,96375.0,96374.0,7.802e-05]
[1733803971994,0.052852,96375.0,96374.0,2e-08]
[1733803972697,0.051862,96355.0,96354.0,0.18304125]
[1733803972890,0.412662,96355.0,96354.0,0.36610195]
[1733803973090,0.412662,96355.0,96354.0,0.18304125]
[1733803973584,0.412662,96355.0,96343.0,0.3659728]
[1733803973585,0.3608,96355.0,96348.0,0.24409975]
[1733803973789,0.051866,96349.0,96347.0,0.24410558]
[1733803973990,0.051866,96349.0,96348.0,8.721e-05]
[1733803974190,0.047866,96349.0,96348.0,8.721e-05]
[1733803975197,0.041866,96349.0,96348.0,8.721e-05]
[1733803975803,0.043866,96349.0,96348.0,8.721e-05]
[1733803976402,0.044866,96349.0,96348.0,8.721e-05]
[1733803977594,0.044866,96349.0,96348.0,0.13398721]
[1733803977993,0.001,96349.0,96348.0,0.13398721]
[1733803978599,0.001,96349.0,96348.0,0.14459959]
[1733803979096,0.003,96349.0,96348.0,0.37972592]